bitfinex/quotes_SOLUSD_20251001
["timestamp","ask_amount","ask_price","bid_price","bid_amount"]
[1759339554981,43.08598906,219.57,219.54,0.71]
[1759339555185,43.08598906,219.57,219.54,5.26487179]
[1759339555504,43.08598906,219.57,219.55,0.71]
[1759339555997,43.08598906,219.57,219.54,4.55487179]
[1759339556186,45.13301652,219.57,219.54,4.55487179]
[1759339556588,45.13301652,219.57,219.54,5.26487179]
[1759339557586,45.13301652,219.57,219.54,0.71]
[1759339557991,45.13301652,219.57,219.54,5.26491197]
[1759339558716,45.13301652,219.57,219.54,0.71]
[1759339559782,45.13301652,219.57,219.53,4.55518569]
[1759339559989,2.04702746,219.56,219.52,4.55537019]
[1759339560201,2.04702746,219.56,219.52,5.26537019]
[1759339560390,2.04702746,219.53,219.51,78.8]
[1759339560597,2.04702746,219.52,219.51,78.8]
[1759339560898,2.04702746,219.52,219.48,4.5561949]
[1759339561109,2.04702746,219.52,219.48,26.0661949]
[1759339561410,2.04702746,219.51,219.48,21.51]
[1759339561613,2.04702746,219.51,219.48,26.06620192]
[1759339561792,2.04702746,219.51,219.48,21.51]
[1759339561996,2.04702746,219.51,219.49,0.71]
[1759339562310,2.04702746,219.51,219.48,20.8]
[1759339562800,2.04702746,219.52,219.48,25.35615635]
[1759339563007,2.04702746,219.52,219.49,0.71]
[1759339564515,2.04702746,219.52,219.48,25.35615635]
[1759339564813,2.04702746,219.52,219.49,0.71]
[1759339565010,2.04702746,219.52,219.48,25.35615635]
[1759339565011,2.04702746,219.52,219.5,0.71]
[1759339565184,33.94702746,219.52,219.5,0.71]
[1759339566114,33.94702746,219.52,219.48,21.51]
[1759339566298,33.94702746,219.52,219.49,0.71]
[1759339569287,38.50243418,219.52,219.48,20.8]
[1759339569527,38.50243418,219.52,219.48,21.51]
[1759339569911,2.04702746,219.51,219.48,21.51]
[1759339570823,33.94702746,219.52,219.48,26.06621117]
[1759339571200,33.94702746,219.52,219.49,0.71]
[1759339572417,0.63,219.51,219.48,20.8]
[1759339572918,2.04702746,219.51,219.48,20.8]
[1759339573128,2.04702746,219.51,219.48,21.51]
[1759339574216,3.1982749,219.49,219.45,4.55665608]
[1759339574420,3.8282749,219.49,219.45,4.55665608]
[1759339574620,35.7082749,219.49,219.45,4.55665608]
[1759339574809,35.7082749,219.49,219.45,21.51]
[1759339575399,35.0782749,219.49,219.45,21.51]
[1759339575717,3.1982749,219.46,219.42,5.26734257]
[1759339575924,35.0782749,219.46,219.42,5.26734257]
[1759339576102,39.63493897,219.46,219.42,0.71]
[1759339576302,35.0782749,219.46,219.41,25.35755698]
[1759339576537,35.0782749,219.46,219.42,0.71]
[1759339577532,39.63493665,219.46,219.41,25.3576609]
[1759339577834,35.7082749,219.46,219.42,0.71]
[1759339578004,3.1982749,219.45,219.42,0.71]
[1759339578398,3.1982749,219.44,219.4,5.26784508]
[1759339578730,3.1982749,219.44,219.41,0.71]
[1759339581528,3.1982749,219.41,219.38,20.8]
[1759339582032,3.1982749,219.4,219.38,4.55829731]
[1759339583226,0.63,219.45,219.39,0.68]
[1759339583405,35.0782749,219.43,219.39,0.68]
[1759339583618,3.1982749,219.4,219.37,4.55848644]
[1759339583926,3.1982749,219.4,219.37,5.21848644]
[1759339585529,35.0782749,219.41,219.37,5.21848644]
[1759339586125,3.1982749,219.4,219.37,0.66]
[1759339587710,31.88,219.41,219.38,4.55830066]
[1759339588029,3.1982749,219.4,219.38,4.55830066]
[1759339588818,3.1982749,219.4,219.37,0.66]
[1759339589010,3.1982749,219.39,219.37,5.21847235]
[1759339589206,3.1982749,219.39,219.36,0.2]
[1759339589207,3.1982749,219.38,219.36,4.75869564]
[1759339589419,3.1982749,219.38,219.36,0.2]
[1759339589622,31.88,219.41,219.37,0.66]
[1759339589931,31.9,219.4,219.38,0.66]
[1759339590143,31.9,219.4,219.39,0.66]
[1759339590521,0.63,219.44,219.39,0.66]
[1759339590736,35.0982749,219.43,219.39,0.66]
[1759339591038,3.1982749,219.41,219.36,16.15541661]
[1759339591239,3.1982749,219.4,219.36,16.15541661]
[1759339591546,3.1982749,219.38,219.36,4.75862595]
[1759339591842,32.53,219.39,219.36,5.41862595]
[1759339591843,31.9,219.39,219.36,5.41862595]
[1759339592144,35.0982749,219.39,219.36,4.75862595]
[1759339592446,31.9,219.39,219.37,0.66]
[1759339592643,31.9,219.39,219.38,0.66]
[1759339593241,3.1982749,219.41,219.38,0.66]
[1759339593443,31.9,219.4,219.38,0.66]
[1759339593941,31.9,219.4,219.38,5.21820674]
[1759339594136,35.0982749,219.4,219.38,4.55820674]
[1759339594349,3.1982749,219.4,219.38,4.55820674]
[1759339594554,35.0982749,219.4,219.38,4.55820674]
[1759339594725,35.0982749,219.4,219.38,5.21820674]
[1759339595340,35.0982749,219.4,219.38,4.55820674]
[1759339595818,3.1982749,219.4,219.37,5.21850845]
[1759339596426,35.0982749,219.4,219.37,4.55850845]
[1759339596620,35.0982749,219.4,219.38,0.66]
[1759339597035,3.1982749,219.41,219.38,0.66]
[1759339597263,31.9,219.4,219.39,0.66]
[1759339599173,31.9,219.4,219.37,16.61477959]
[1759339599336,31.9,219.4,219.39,4.55809289]
[1759339600461,31.9,219.4,219.37,15.95477959]
[1759339600659,31.9,219.4,219.37,16.61477959]
[1759339601048,35.0982749,219.4,219.37,16.61477959]
[1759339601367,35.0982749,219.4,219.38,0.66]
[1759339602050,35.0982749,219.4,219.39,4.55809289]
[1759339602568,35.0982749,219.4,219.38,4.55827652]
[1759339602764,35.0982749,219.4,219.38,5.21827652]
[1759339602962,0.63,219.42,219.38,5.21827652]
[1759339603142,35.0782749,219.4,219.38,5.21827652]
[1759339603963,3.1982749,219.4,219.38,5.21827652]
[1759339604263,31.88,219.4,219.38,5.21827652]
[1759339604564,11.59140848,219.43,219.39,0.66]
[1759339604865,31.88,219.42,219.4,0.66]
[1759339605853,35.0782749,219.42,219.38,15.95402818]
[1759339606054,31.88,219.42,219.39,0.66]
[1759339606572,31.88,219.42,219.41,4.5576774]
[1759339607168,35.0782749,219.42,219.41,4.5576774]
[1759339608053,31.88,219.42,219.41,4.5576774]
[1759339608566,31.88,219.42,219.38,15.95405232]
[1759339608774,31.88,219.42,219.41,0.66]
[1759339609351,31.88,219.42,219.38,15.95405232]
[1759339609352,31.88,219.42,219.4,0.66]
[1759339609755,31.88,219.42,219.41,4.5576774]
[1759339610474,31.88,219.42,219.41,5.2176774]
[1759339611569,43.47140848,219.43,219.41,5.2176774]
[1759339611773,43.47140848,219.43,219.42,0.66]
[1759339612571,43.47140848,219.43,219.42,5.21746969]
[1759339614975,11.59140848,219.43,219.42,5.21746969]
[1759339617870,11.59140848,219.43,219.42,5.27746969]
[1759339622558,11.59140848,219.43,219.4,12.11449335]
[1759339622784,11.59140848,219.43,219.4,11.39449335]
[1759339622982,11.59140848,219.43,219.41,0.72]
[1759339623246,11.59140848,219.43,219.42,0.72]
[1759339623481,11.59140848,219.43,219.42,5.27746969]
[1759339626489,11.59140848,219.43,219.42,25.35746969]
[1759339626665,3.1982749,219.52,219.42,37.47114392]
[1759339626864,3.8282749,219.53,219.43,0.72]
[1759339627062,3.8282749,219.53,219.45,20.8]
[1759339627270,3.8282749,219.53,219.46,0.72]
[1759339627662,0.63,219.53,219.46,0.72]
[1759339628067,0.63,219.53,219.47,15.9475099]
[1759339628385,0.63,219.55,219.48,0.72]
[1759339628592,3.8282749,219.55,219.48,0.72]
[1759339629308,3.1982749,219.54,219.48,0.72]
[1759339629586,3.1982749,219.53,219.48,0.72]
[1759339629878,3.8282749,219.53,219.48,0.72]
[1759339630389,3.8282749,219.53,219.47,15.9475099]
[1759339630390,3.8282749,219.53,219.49,5.27601621]
[1759339631169,3.1982749,219.53,219.49,5.27601621]
[1759339631682,3.1982749,219.54,219.5,0.72]
[1759339631886,3.1982749,219.54,219.49,4.55601621]
[1759339632090,11.4531149,219.56,219.5,0.72]
[1759339632277,11.4531149,219.56,219.54,20.8]
[1759339632465,11.4531149,219.56,219.55,0.72]
[1759339633387,11.4531149,219.56,219.55,5.27477112]
[1759339633591,11.4531149,219.56,219.55,26.07477112]
[1759339640588,11.4531149,219.56,219.55,25.35477112]
[1759339640891,11.4531149,219.56,219.55,26.06477112]
[1759339641095,11.4531149,219.56,219.55,20.8]
[1759339641601,13.49773392,219.56,219.52,5.26519736]
[1759339641776,12.0831149,219.56,219.52,5.26519736]
[1759339642102,14.12773392,219.56,219.52,5.26519736]
[1759339642479,2.67461902,219.55,219.52,20.8]
[1759339642706,2.67461902,219.55,219.5,4.55562679]
[1759339643004,2.67461902,219.55,219.5,26.06562679]
[1759339643403,2.67461902,219.55,219.5,25.35562679]
[1759339643609,2.04461902,219.52,219.48,4.55604588]
[1759339643807,16.0076805,219.56,219.48,4.55604588]
[1759339643808,2.04461902,219.51,219.48,4.55604588]
[1759339644403,2.04461902,219.51,219.47,21.51]
[1759339644707,2.04461902,219.5,219.44,11.39222576]
[1759339644911,2.04461902,219.5,219.45,0.71]
[1759339645107,2.04461902,219.5,219.46,0.71]
[1759339645290,2.04461902,219.5,219.47,20.8]
[1759339645722,2.04461902,219.5,219.47,25.35642344]
[1759339645899,2.04461902,219.51,219.47,26.06642344]
[1759339646298,0.63,219.52,219.47,26.06642344]
[1759339646487,2.04461902,219.51,219.47,26.06642344]
[1759339646682,2.04461902,219.51,219.47,21.51]
[1759339646985,2.04461902,219.5,219.47,20.8]
[1759339647206,2.04461902,219.5,219.47,21.51]
[1759339647909,2.04461902,219.5,219.48,0.71]
[1759339648085,2.04461902,219.52,219.47,25.35635095]
[1759339648406,2.04461902,219.52,219.48,0.71]
[1759339648614,2.04461902,219.52,219.49,0.71]
[1759339648915,2.04461902,219.52,219.47,25.35635095]
[1759339649119,5.18498398,219.54,219.48,0.71]
[1759339649405,2.04461902,219.52,219.48,0.71]
[1759339649702,2.04461902,219.52,219.49,5.26596574]
[1759339649914,2.04461902,219.52,219.49,4.55596574]
[1759339650292,2.04461902,219.5,219.46,20.8]
[1759339650594,2.04461902,219.47,219.42,78.8]
[1759339650807,2.04461902,219.46,219.41,5.26755216]
[1759339651117,2.67461902,219.46,219.42,0.71]
[1759339651316,0.63,219.48,219.42,0.71]
[1759339651515,2.04461902,219.46,219.42,0.71]
[1759339651806,2.04461902,219.47,219.43,0.71]
[1759339652012,2.04461902,219.49,219.44,0.71]
[1759339652220,2.04461902,219.49,219.41,4.55767343]
[1759339652221,2.04461902,219.49,219.45,0.71]
[1759339652710,2.67461902,219.49,219.45,0.71]
[1759339652891,2.67461902,219.49,219.43,0.71]
[1759339653203,2.04461902,219.48,219.44,4.55705432]
[1759339653409,2.04461902,219.48,219.45,0.71]
[1759339655708,2.04461902,219.48,219.46,0.71]
[1759339655908,2.04461902,219.49,219.46,0.71]
[1759339656105,2.04461902,219.49,219.45,4.55682321]
[1759339656298,2.04461902,219.49,219.45,0.71]
[1759339656715,2.04461902,219.49,219.41,15.95187091]
[1759339656912,2.04461902,219.49,219.42,0.71]
[1759339657217,0.63,219.5,219.43,4.55726199]
[1759339657396,2.04461902,219.49,219.44,0.71]
[1759339657591,2.04461902,219.49,219.45,0.71]
[1759339659014,2.04461902,219.49,219.46,0.71]
[1759339659314,2.04461902,219.49,219.46,5.26658296]
[1759339659499,2.04461902,219.49,219.46,4.55658296]
[1759339659701,2.04461902,219.49,219.45,4.55682064]
[1759339660096,2.04461902,219.49,219.45,5.26682064]
[1759339660895,0.63,219.5,219.45,5.26682064]
[1759339661093,2.04461902,219.49,219.45,5.26682064]
[1759339661818,2.04461902,219.49,219.46,0.71]
[1759339662194,2.04461902,219.49,219.45,0.71]
[1759339662396,0.63,219.5,219.44,4.55705432]
[1759339662698,2.04461902,219.49,219.44,5.26705432]
[1759339662897,2.04461902,219.49,219.45,0.71]
[1759339663097,2.04461902,219.49,219.46,0.71]
[1759339664299,2.04461902,219.49,219.46,5.26662435]
[1759339666518,2.04461902,219.53,219.47,0.71]
[1759339666717,2.04461902,219.55,219.47,0.71]
[1759339666921,11.4531149,219.56,219.49,20.8]
[1759339667107,11.4531149,219.56,219.5,0.71]
[1759339667504,11.4531149,219.56,219.5,21.51]
[1759339667715,11.4531149,219.56,219.54,20.8]
[1759339667929,11.4531149,219.56,219.55,0.71]
[1759339668509,11.4531149,219.56,219.55,5.26477112]
[1759339672424,0.1,219.6,219.55,16.65169892]
[1759339672725,0.1,219.6,219.56,0.71]
[1759339673112,0.1,219.6,219.57,4.55435624]
[1759339673310,0.1,219.6,219.58,0.71]
[1759339674123,0.1,219.6,219.59,20.8]
[1759339674335,0.1,219.6,219.59,21.46]
[1759339675225,0.1,219.6,219.59,26.01394143]
[1759339675809,0.1,219.6,219.59,0.66]
[1759339676624,0.1,219.6,219.58,4.55405429]
[1759339676843,2.14461902,219.6,219.56,5.21443095]
[1759339677633,0.1,219.6,219.56,5.21443095]
[1759339680014,0.1,219.6,219.57,5.21428249]
[1759339680422,0.1,219.6,219.58,0.66]
[1759339682844,0.1,219.6,219.58,5.21411201]
[1759339683025,0.1,219.6,219.59,0.66]
[1759339683533,0.1,219.6,219.59,5.21394143]
[1759339684940,0.1,219.6,219.58,0.66]
[1759339685236,0.1,219.6,219.56,15.94097285]
[1759339685540,0.1,219.6,219.59,0.66]
[1759339687729,0.1,219.6,219.59,26.01394143]
[1759339709047,0.1,219.6,219.59,37.17473978]
[1759339709551,1e-08,219.6,219.59,115.97473978]
[1759339709948,1e-08,219.6,219.59,122.00828484]
[1759339710150,1e-08,219.6,219.59,133.32800408]
[1759339710350,11.31971924,219.66,219.63,31.67647521]
[1759339710656,0.1,219.72,219.64,0.99432314]
[1759339710953,0.1,219.72,219.65,0.71]
[1759339711159,0.1,219.72,219.69,20.8]
[1759339711331,0.1,219.72,219.69,21.51]
[1759339712739,0.1,219.72,219.71,20.8]
[1759339714644,0.1,219.72,219.68,20.8]
[1759339714949,0.63,219.71,219.68,20.8]
[1759339715141,3.19326844,219.71,219.68,20.8]
[1759339715341,3.82326844,219.7,219.64,78.8]
[1759339715558,3.19326844,219.67,219.6,0.67]
[1759339715750,0.63,219.69,219.61,0.67]
[1759339715751,3.19326844,219.68,219.61,0.67]
[1759339716061,3.19326844,219.68,219.62,20.8]
[1759339716265,3.19326844,219.68,219.63,20.8]
[1759339716653,0.63,219.67,219.63,4.55304307]
[1759339717262,3.19326844,219.65,219.59,4.55394143]
[1759339717441,3.19326844,219.65,219.61,20.8]
[1759339718152,3.19326844,219.66,219.61,20.8]
[1759339718352,3.82326844,219.66,219.59,26.02394143]
[1759339719249,3.19326844,219.64,219.59,26.02394143]
[1759339719659,3.82326844,219.64,219.59,21.47]
[1759339719842,3.82326844,219.64,219.59,20.8]
[1759339720459,3.19326844,219.61,219.58,20.8]
[1759339720641,3.19326844,219.62,219.58,20.8]
[1759339720842,3.82326844,219.62,219.58,20.8]
[1759339721567,3.19326844,219.62,219.58,20.8]
[1759339722489,3.19326844,219.61,219.56,25.354545]
[1759339722673,3.19326844,219.61,219.54,5.22478413]
[1759339722674,3.82326844,219.61,219.54,5.22478413]
[1759339722988,3.19326844,219.6,219.54,5.22478413]
[1759339724676,3.19326844,219.57,219.53,25.35517239]
[1759339724857,3.19326844,219.57,219.53,4.55517239]
[1759339725550,3.82326844,219.56,219.51,4.55542852]
[1759339725968,3.82326844,219.56,219.51,0.67]
[1759339726370,3.82326844,219.55,219.5,21.47]
[1759339726951,8.3780406,219.55,219.5,21.47]
[1759339727264,8.3780406,219.55,219.5,0.67]
[1759339727468,8.3780406,219.55,219.49,4.55586559]
[1759339727469,7.7480406,219.55,219.49,4.55586559]
[1759339727653,3.19326844,219.53,219.49,20.8]
[1759339727853,3.19326844,219.53,219.49,21.47]
[1759339728057,3.19326844,219.51,219.46,0.67]
[1759339728254,0.63,219.52,219.47,0.67]
[1759339728656,0.63,219.54,219.48,0.67]
[1759339728865,3.19326844,219.53,219.48,5.22616243]
[1759339729380,3.82326844,219.53,219.48,5.22616243]
[1759339729879,0.63,219.55,219.49,0.67]
[1759339730075,3.19326844,219.55,219.49,0.67]
[1759339730279,3.19326844,219.56,219.49,0.67]
[1759339730858,17.16315057,219.58,219.5,15.94533029]
[1759339731058,22.34735245,219.58,219.51,0.67]
[1759339731364,3.19326844,219.57,219.51,0.67]
[1759339732583,3.19326844,219.53,219.49,4.55599029]
[1759339732758,3.19326844,219.52,219.48,4.5562238]
[1759339732959,3.19326844,219.52,219.48,5.2262238]
[1759339733575,3.82326844,219.53,219.48,5.2262238]
[1759339734458,3.19326844,219.51,219.47,25.35641878]
[1759339734688,3.19326844,219.5,219.47,25.35641878]
[1759339735376,3.19326844,219.51,219.47,25.35641878]
[1759339735583,3.19326844,219.51,219.48,0.68]
[1759339735802,3.19326844,219.51,219.47,25.35641878]
[1759339735986,3.19326844,219.51,219.48,0.68]
[1759339736789,3.19326844,219.51,219.48,5.23619625]
[1759339737177,3.19326844,219.51,219.48,0.68]
[1759339738187,5.18524964,219.53,219.48,0.68]
[1759339738387,3.19326844,219.51,219.48,5.23621363]
[1759339739886,3.19326844,219.51,219.47,25.35643073]
[1759339740089,3.19326844,219.51,219.47,26.03643073]
[1759339740482,3.19326844,219.5,219.47,26.03643073]
[1759339740695,3.19326844,219.48,219.45,4.55676706]
[1759339741191,3.19326844,219.48,219.45,0.68]
[1759339741377,3.19326844,219.48,219.46,0.68]
[1759339741579,3.19326844,219.49,219.46,0.68]
[1759339742467,3.19326844,219.49,219.45,4.55682747]
[1759339742667,3.19326844,219.49,219.45,5.23682747]
[1759339742966,5.18561884,219.51,219.45,5.23682747]
[1759339743380,3.19326844,219.49,219.45,5.23682747]
[1759339743587,3.19326844,219.5,219.46,0.68]
[1759339743796,3.19326844,219.5,219.47,0.68]
[1759339744597,0.63,219.53,219.48,4.5562238]
[1759339744769,3.19326844,219.5,219.46,4.55643846]
[1759339744978,3.19326844,219.5,219.47,0.68]
[1759339747798,3.19326844,219.5,219.47,5.23636723]
[1759339748396,3.19326844,219.5,219.48,0.68]
[1759339748774,3.19326844,219.5,219.47,4.55636723]
[1759339748978,3.19326844,219.5,219.47,5.23636723]
[1759339749496,3.19326844,219.5,219.47,0.68]
[1759339750089,3.19326844,219.5,219.47,5.23636765]
[1759339750601,3.19326844,219.5,219.47,0.68]
[1759339751909,3.19326844,219.49,219.42,20.8]
[1759339752081,3.19326844,219.49,219.45,21.48]
[1759339752290,3.19326844,219.49,219.46,0.68]
[1759339753179,3.19326844,219.49,219.46,5.2366161]
[1759339753375,3.19326844,219.49,219.44,20.8]
[1759339753600,3.19326844,219.49,219.45,5.23684581]
[1759339753800,3.19326844,219.49,219.46,0.68]
[1759339756304,20.8,219.46,219.34,5.1331707]
[1759339756505,20.8,219.46,219.32,0.2]
[1759339756506,2.04735364,219.37,219.32,0.88]
[1759339757004,2.04735364,219.37,219.33,4.55932873]
[1759339757787,2.04735364,219.37,219.33,5.23932873]
[1759339758509,2.04735364,219.37,219.34,4.5591055]
[1759339758878,2.04735364,219.37,219.35,4.55887998]
[1759339759078,25.98686145,219.45,219.36,5.43868195]
[1759339759278,2.04735364,219.42,219.37,0.68]
[1759339760303,2.04735364,219.42,219.36,16.15547261]
[1759339760304,2.04735364,219.42,219.38,0.7]
[1759339760604,2.04735364,219.42,219.39,0.7]
[1759339760984,2.04735364,219.4,219.37,4.55850845]
[1759339761185,5.18720372,219.44,219.36,0.2]
[1759339761186,2.04735364,219.38,219.36,0.2]
[1759339761880,0.63,219.41,219.36,0.2]
[1759339762077,2.04735364,219.37,219.36,0.9]
[1759339762276,2.04735364,219.37,219.36,5.45871626]
[1759339762908,2.04735364,219.37,219.36,0.9]
[1759339763088,5.18769441,219.41,219.36,0.2]
[1759339763288,2.04735364,219.37,219.36,0.9]
[1759339763491,2.04735364,219.37,219.36,5.45871626]
[1759339766109,11.48635505,219.47,219.36,5.45871626]
[1759339766110,2.04735364,219.43,219.36,5.45871626]
[1759339766410,2.04735364,219.43,219.37,0.7]
[1759339766785,2.04735364,219.44,219.37,0.7]
[1759339767202,2.04735364,219.44,219.38,4.55830066]
[1759339767394,2.04735364,219.44,219.39,0.7]
[1759339767901,2.04735364,219.44,219.38,4.55830066]
[1759339768112,2.04735364,219.44,219.39,0.7]
[1759339768419,2.04735364,219.44,219.4,0.7]
[1759339769614,2.04735364,219.43,219.4,5.25779223]
[1759339772290,2.04735364,219.43,219.41,0.7]
[1759339772490,2.04735364,219.43,219.4,4.55779223]
[1759339772698,2.04735364,219.43,219.4,5.25779223]
[1759339773513,2.04735364,219.43,219.4,0.7]
[1759339773714,2.04735364,219.43,219.39,5.25807573]
[1759339774304,2.04735364,219.43,219.39,4.55807573]
[1759339774508,2.04735364,219.43,219.4,0.7]
[1759339776921,2.04735364,219.43,219.4,5.25778424]
[1759339777901,2.04735364,219.43,219.41,0.7]
[1759339778418,11.48635505,219.47,219.42,0.7]
[1759339778932,11.48635505,219.47,219.43,20.8]
[1759339779223,11.48635505,219.47,219.44,5.25705432]
[1759339779427,11.48635505,219.47,219.45,0.7]
[1759339779922,11.48635505,219.47,219.46,0.7]
[1759339780929,11.48635505,219.47,219.44,5.25705432]
[1759339781129,11.48635505,219.47,219.45,5.25675628]
[1759339781307,11.48635505,219.47,219.46,0.7]
[1759339782606,11.48635505,219.47,219.46,5.25663902]
[1759339785535,11.48635505,219.47,219.45,4.55683418]
[1759339785729,11.48635505,219.47,219.45,5.25683418]
[1759339786317,11.48635505,219.47,219.45,4.55683418]
[1759339786847,11.48635505,219.47,219.44,5.25705432]
[1759339789651,11.48635505,219.47,219.45,0.7]
[1759339790860,11.48635505,219.47,219.46,0.7]
[1759339791848,11.48635505,219.47,219.46,5.25663902]
[1759339795159,0.63,219.54,219.46,37.44823657]
[1759339795340,0.63,219.54,219.47,0.71]
[1759339796236,0.63,219.54,219.48,4.5562238]
[1759339796436,0.63,219.54,219.48,5.2662238]
[1759339797065,20.8,219.55,219.48,15.9467833]
[1759339797264,20.8,219.55,219.49,0.71]
[1759339797440,2.67735364,219.57,219.49,0.71]
[1759339797640,2.04735364,219.57,219.49,0.71]
[1759339797840,2.67735364,219.58,219.49,0.71]
[1759339798357,2.67735364,219.58,219.5,15.94533029]
[1759339798662,2.67735364,219.58,219.51,0.71]
[1759339799061,0.63,219.58,219.51,0.71]
[1759339799265,2.04735364,219.57,219.51,0.71]
[1759339799450,2.67735364,219.57,219.51,0.71]
[1759339800036,2.04735364,219.56,219.51,0.71]
[1759339800539,2.67735364,219.56,219.51,4.55546104]
[1759339800859,2.67735364,219.56,219.51,5.26546104]
[1759339801252,0.63,219.55,219.51,5.26546104]
[1759339801961,0.63,219.55,219.51,4.55546104]
[1759339802142,2.04735364,219.56,219.51,5.26546104]
[1759339802642,2.67735364,219.56,219.51,5.26546104]
[1759339802855,0.63,219.55,219.51,4.55546104]
[1759339803255,0.63,219.55,219.51,0.71]
[1759339803751,2.67735364,219.55,219.49,5.26601621]
[1759339804463,2.04735364,219.55,219.5,0.71]
[1759339804768,2.04735364,219.55,219.51,5.26549039]
[1759339804973,2.67735364,219.55,219.51,5.26549039]
[1759339805153,2.67735364,219.55,219.51,4.55549039]
[1759339805870,2.04735364,219.55,219.5,5.26580865]
[1759339806075,7.23216972,219.55,219.5,5.26580865]
[1759339806257,2.04735364,219.51,219.48,78.8]
[1759339806455,2.04735364,219.5,219.46,5.26660205]
[1759339806848,2.04735364,219.48,219.43,0.71]
[1759339807072,2.04735364,219.46,219.41,0.71]
[1759339807275,2.04735364,219.45,219.42,0.71]
[1759339807468,2.04735364,219.45,219.43,0.71]
[1759339808043,0.63,219.49,219.42,4.5574668]
[1759339808044,5.1861238,219.49,219.42,4.5574668]
[1759339808355,2.04735364,219.52,219.43,0.71]
[1759339808874,21.43,219.53,219.43,0.71]
[1759339809176,25.9851874,219.53,219.43,0.71]
[1759339809368,25.9851874,219.53,219.44,4.55705432]
[1759339809668,0.63,219.52,219.44,4.55705432]
[1759339809872,0.63,219.52,219.45,0.71]
[1759339810577,0.63,219.52,219.45,5.26675391]
[1759339810578,4.55560111,219.51,219.45,5.26675391]
[1759339810952,5.18541797,219.52,219.45,5.26675391]
[1759339811876,5.18541797,219.52,219.46,0.71]
[1759339812453,5.18541797,219.52,219.46,5.26660805]
[1759339812655,5.18541797,219.52,219.46,0.71]
[1759339812962,2.04735364,219.49,219.46,0.71]
[1759339813268,2.04735364,219.49,219.45,4.55683858]
[1759339813476,2.04735364,219.49,219.45,5.26683858]
[1759339813665,2.04735364,219.49,219.45,4.55683858]
[1759339813868,2.04735364,219.49,219.46,0.71]
[1759339814268,21.43,219.53,219.47,0.71]
[1759339814471,2.04735364,219.51,219.48,4.5562238]
[1759339814760,2.04735364,219.51,219.47,4.55640307]
[1759339814978,2.04735364,219.51,219.47,5.26640307]
[1759339815774,2.04735364,219.5,219.47,0.71]
[1759339815955,2.04735364,219.49,219.47,0.71]
[1759339816479,3.19810411,219.49,219.47,0.71]
[1759339817157,3.19810411,219.49,219.47,5.26638372]
[1759339817358,3.19810411,219.49,219.48,0.71]
[1759339818183,3.19810411,219.49,219.47,5.26638372]
[1759339818580,3.19810411,219.5,219.47,5.26638372]
[1759339819566,5.18500805,219.54,219.48,0.71]
[1759339819886,3.19810411,219.52,219.48,0.71]
[1759339820261,11.91582403,219.54,219.48,0.71]
[1759339820262,11.28582403,219.54,219.48,0.71]
[1759339820983,11.28582403,219.54,219.48,0.99432314]
[1759339821362,11.28582403,219.54,219.49,0.68]
[1759339821562,11.28582403,219.54,219.5,15.94533029]
[1759339821783,11.28582403,219.54,219.51,0.68]
[1759339824487,11.28582403,219.54,219.52,4.55539358]
[1759339824697,11.28582403,219.54,219.52,5.24539358]
[1759339825062,11.28582403,219.54,219.53,0.69]
[1759339825671,11.28582403,219.54,219.5,15.94533029]
[1759339825909,11.28582403,219.54,219.53,0.69]
[1759339826180,11.28582403,219.54,219.51,0.69]
[1759339826388,11.28582403,219.54,219.52,0.69]
[1759339827388,11.28582403,219.54,219.52,5.24520291]
[1759339829298,3.82810411,219.53,219.5,78.8]
[1759339829467,11.91582403,219.54,219.5,78.8]
[1759339829659,11.28582403,219.54,219.51,0.69]
[1759339830278,0.63,219.56,219.51,0.69]
[1759339830491,0.63,219.56,219.52,0.69]
[1759339830862,0.63,219.56,219.53,4.55518607]
[1759339832682,0.63,219.56,219.52,4.55536347]
[1759339832683,3.19810411,219.55,219.52,4.55536347]
[1759339832985,3.82810411,219.56,219.52,5.24536347]